bitfinex-derivatives/quotes_SOLF0:USTF0_20240920
["timestamp","ask_amount","ask_price","bid_price","bid_amount"]
[1726851734568,16.24,148.02,147.93,16.24]
[1726851735584,16.24,148.0,147.91,16.24]
[1726851735880,3.3792,147.96,147.93,3.3797]
[1726851737067,16.24,148.02,147.94,3.3794]
[1726851737281,21.6403,148.03,147.93,16.24]
[1726851737282,1.3503,148.03,147.93,16.24]
[1726851737667,1.3503,148.03,147.95,16.24]
[1726851738077,1.4063,148.05,147.96,16.24]
[1726851738275,1.4063,148.05,147.99,16.24]
[1726851738582,3.34257499,148.08,147.99,16.24]
[1726851738779,2.8034,148.09,147.99,16.24]
[1726851738780,4.1276,148.09,147.99,16.24]
[1726851739083,16.24,148.07,147.99,16.24]
[1726851739786,3.3777,148.03,147.99,19.6184]
[1726851739975,16.24,148.07,147.99,16.24]
[1726851740175,16.24,148.05,147.95,20.2278]
[1726851740375,3.3783,148.0,147.95,20.2278]
[1726851740981,3.3783,148.0,147.96,3.379]
[1726851741573,3.3785,147.99,147.95,18.9193]
[1726851741772,19.53437251,148.01,147.91,16.24]
[1726851741972,3.3796,147.94,147.91,16.24]
[1726851742182,1.3869,148.0,147.91,16.24]
[1726851743291,3.3793,147.95,147.91,19.62]
[1726851744287,16.24,147.97,147.89,2.825]
[1726851744490,16.24,147.95,147.89,1.4106]
[1726851744785,16.24,147.95,147.87,135.18]
[1726851745290,3.3808,147.89,147.87,135.18]
[1726851745489,16.24,147.93,147.84,1.4058]
[1726851746182,2.6385,147.94,147.84,17.6458]
[1726851747291,2.6385,147.94,147.86,3.3812]
[1726851748983,3.3803,147.91,147.87,3.3811]
[1726851751386,3.3801,147.92,147.87,16.24]
[1726851752791,16.24,147.97,147.87,16.24]
[1726851752991,17.5336,147.99,147.89,16.24]
[1726851753303,3.3796,147.94,147.9,3.3803]
[1726851753600,1.2936,147.99,147.91,16.24]
[1726851754191,3.3792,147.96,147.92,3.3799]
[1726851754385,1.2936,147.99,147.92,3.3799]
[1726851754590,1.2936,147.99,147.91,1.4076]
[1726851754895,16.24,147.98,147.91,1.4076]
[1726851755299,3.3794,147.95,147.91,4.7877]
[1726851755796,3.3789,147.97,147.93,3.3796]
[1726851756296,1.2936,147.99,147.93,3.3796]
[1726851756494,3.3791,147.96,147.92,19.6199]
[1726851756706,1.2936,147.99,147.91,1.4076]
[1726851756887,17.5336,147.99,147.91,1.4076]
[1726851757094,3.3796,147.94,147.91,1.4076]
[1726851757793,3.3796,147.94,147.91,4.7878]
[1726851757992,17.5336,147.99,147.91,4.7878]
[1726851757993,3.3794,147.95,147.91,4.7878]
[1726851758397,3.379,147.97,147.94,3.3794]
[1726851758997,3.3787,147.98,147.94,3.3794]
[1726851759506,1.2936,147.99,147.94,3.3794]
[1726851759884,3.3787,147.98,147.94,3.3794]
[1726851760303,1.2936,147.99,147.94,3.3794]
[1726851760692,16.24,147.98,147.91,1.4076]
[1726851761091,16.24,147.98,147.9,1.3111]
[1726851761502,17.6061,147.98,147.9,1.3111]
[1726851761711,16.24,147.96,147.88,1.3365]
[1726851761902,16.24,147.94,147.86,1.3068]
[1726851762093,16.24,147.94,147.87,3.381]
[1726851762593,16.24,147.96,147.86,1.3068]
[1726851762798,3.3799,147.93,147.86,1.3068]
[1726851763003,16.24,147.96,147.86,1.3068]
[1726851763200,3.3801,147.92,147.88,3.3807]
[1726851763896,3.3805,147.9,147.86,4.6881]
[1726851764098,16.24,147.92,147.86,1.3068]
[1726851764301,16.24,147.92,147.83,1.3365]
[1726851764495,16.24,147.9,147.83,1.3365]
[1726851765298,16.24,147.88,147.83,1.3365]
[1726851765497,16.24,147.86,147.73,135.22]
[1726851765805,16.24,147.86,147.76,1.326]
[1726851766005,16.24,147.84,147.76,1.326]
[1726851766701,19.63160021,147.84,147.76,1.326]
[1726851767104,16.24,147.82,147.76,1.326]
[1726851767304,1.2901,147.83,147.76,1.326]
[1726851768108,25.98,147.88,147.76,1.326]
[1726851768311,25.98,147.88,147.79,3.3828]
[1726851768610,25.98,147.88,147.76,1.326]
[1726851769809,1.3748,147.9,147.77,25.98]
[1726851770016,1.3748,147.9,147.78,1.3632]
[1726851770703,3.3815,147.86,147.81,3.3825]
[1726851770912,1.3748,147.9,147.78,1.3632]
[1726851771403,3.3814,147.86,147.81,3.3823]
[1726851772399,3.3816,147.85,147.81,3.3823]
[1726851772606,3.3816,147.85,147.8,3.3827]
[1726851773807,1.3748,147.9,147.79,3.3829]
[1726851774512,3.382,147.84,147.79,3.3829]
[1726851774814,1.3748,147.9,147.79,3.3829]
[1726851775014,3.382,147.83,147.79,3.3829]
[1726851777216,3.382,147.83,147.8,3.3827]
[1726851777515,3.3818,147.84,147.78,1.3632]
[1726851777903,3.3818,147.84,147.8,3.3826]
[1726851778512,1.3748,147.9,147.8,3.3822]
[1726851778812,25.98,147.88,147.78,1.3632]
[1726851779024,25.98,147.88,147.78,4.7459]
[1726851779207,46.27,147.88,147.78,1.3632]
[1726851779415,25.98,147.88,147.78,1.3632]
[1726851779610,25.98,147.88,147.77,3.383]
[1726851779811,25.98,147.88,147.76,1.326]
[1726851780716,3.3819,147.83,147.76,1.326]
[1726851781315,3.3817,147.84,147.76,1.326]
[1726851781814,3.3814,147.85,147.81,3.382]
[1726851782421,3.3815,147.84,147.81,3.382]
[1726851782628,3.3815,147.84,147.8,3.3823]
[1726851783134,3.3817,147.83,147.8,3.3823]
[1726851783429,1.3748,147.9,147.77,25.98]
[1726851783622,1.3748,147.9,147.79,25.98]
[1726851783623,3.3811,147.86,147.79,25.98]
[1726851784029,1.3748,147.9,147.79,25.98]
[1726851784229,3.3809,147.87,147.79,25.98]
[1726851784426,3.3809,147.87,147.83,3.3815]
[1726851784633,1.3748,147.9,147.79,25.98]
[1726851784825,3.3811,147.86,147.79,25.98]
[1726851785126,3.3811,147.86,147.82,3.3818]
[1726851785333,1.3748,147.9,147.79,25.98]
[1726851785830,1.3748,147.9,147.82,25.98]
[1726851786032,1.3748,147.9,147.83,1.3343]
[1726851786235,3.3805,147.89,147.85,3.381]
[1726851786431,1.3748,147.9,147.83,1.3343]
[1726851786940,3.3808,147.88,147.83,4.716]
[1726851787234,1.3748,147.9,147.83,4.716]
[1726851787436,3.3807,147.88,147.84,3.3815]
[1726851787637,1.3748,147.9,147.83,1.3343]
[1726851787833,1.2889,147.94,147.83,1.3343]
[1726851788032,17.5089,147.94,147.84,17.5568]
[1726851788632,3.38,147.91,147.87,3.3807]
[1726851788833,17.5089,147.94,147.86,16.22]
[1726851788834,1.2889,147.94,147.86,16.22]
[1726851789037,18.7879,147.98,147.88,16.22]
[1726851789630,3.3794,147.94,147.9,3.38]
[1726851789940,18.7879,147.98,147.88,16.22]
[1726851790433,18.7879,147.98,147.88,19.6004]
[1726851790434,3.3796,147.93,147.88,19.6004]
[1726851790622,18.7879,147.98,147.88,19.6004]
[1726851791044,3.3796,147.93,147.88,19.6004]
[1726851791248,18.7879,147.98,147.88,19.6004]
[1726851791435,3.3796,147.93,147.89,3.3803]
[1726851791943,3.3797,147.92,147.88,19.6005]
[1726851792244,18.7879,147.98,147.88,16.22]
[1726851792439,3.3791,147.95,147.9,3.3799]
[1726851792626,18.7879,147.98,147.88,16.22]
[1726851793238,3.3795,147.93,147.89,3.3802]
[1726851793540,1.2791,147.98,147.88,16.22]
[1726851793746,3.3789,147.96,147.92,3.3795]
[1726851794341,3.379,147.95,147.91,3.3798]
[1726851795747,1.2791,147.98,147.9,1.3988]
[1726851795939,27.2591,147.98,147.89,1.3309]
[1726851796136,28.6677,147.98,147.89,1.3309]
[1726851796527,3.38,147.91,147.89,1.3309]
[1726851796933,25.98,147.96,147.85,1.4154]
[1726851797442,3.3805,147.89,147.85,4.7965]
[1726851797832,25.98,147.96,147.85,4.7965]
[1726851798036,25.98,147.96,147.86,3.381]
[1726851798435,46.27,147.96,147.86,3.381]
[1726851798635,3.3802,147.9,147.86,3.381]
[1726851799747,3.3804,147.89,147.86,3.381]
[1726851799962,46.27,147.91,147.74,3.35736304]
[1726851800240,3.3814,147.85,147.78,1.3194]
[1726851800540,1.4051,147.9,147.8,3.3822]
[1726851800541,6.14945326,147.9,147.8,3.3822]
[1726851801130,3.3816,147.84,147.8,3.3822]
[1726851801438,25.98,147.88,147.79,3.3825]
[1726851802235,3.3819,147.83,147.79,3.3825]
[1726851803136,26.43945326,147.9,147.78,27.2994]
[1726851803137,2.769,147.9,147.78,27.2994]
[1726851803647,3.3335686,147.89,147.78,1.3194]
[1726851804051,3.3815,147.84,147.8,3.3823]
[1726851804842,3.3817,147.83,147.79,3.3826]
[1726851805455,3.3815,147.84,147.8,3.3824]
[1726851805744,3.34540656,147.89,147.8,3.3824]
[1726851806454,3.34540656,147.89,147.81,3.3822]
[1726851806651,28.749,147.9,147.78,1.3194]
[1726851808449,3.3813,147.85,147.78,1.3194]
[1726851808952,3.3813,147.85,147.81,3.382]
[1726851810048,3.3813,147.85,147.82,3.3819]
[1726851810245,2.769,147.9,147.81,25.98]
[1726851810544,2.769,147.9,147.82,4.7285]
[1726851810750,3.3812,147.86,147.82,4.7285]
[1726851812241,2.769,147.9,147.81,3.3821]
[1726851812441,2.769,147.9,147.8,3.34979689]
[1726851812639,2.769,147.9,147.78,1.3194]
[1726851812842,3.3812,147.86,147.82,3.3819]
[1726851813943,2.769,147.9,147.83,3.3817]
[1726851814148,1.4051,147.9,147.8,25.98]
[1726851814453,1.4051,147.9,147.8,29.35414675]
[1726851814648,1.4051,147.9,147.85,3.381]
[1726851814852,1.4051,147.9,147.8,29.35414675]
[1726851815453,3.381,147.87,147.83,3.3816]
[1726851816857,3.381,147.87,147.84,3.3814]
[1726851817557,3.381,147.87,147.8,29.35414675]
[1726851817751,3.3811,147.86,147.8,29.35414675]
[1726851817950,3.3811,147.86,147.81,16.23]
[1726851818150,3.3811,147.86,147.83,3.3815]
[1726851820660,1.4051,147.9,147.83,16.23]
[1726851821753,37.8842,147.94,147.83,16.23]
[1726851821754,3.3805,147.89,147.84,1.3231]
[1726851822063,18.935,147.94,147.84,1.3231]
[1726851822265,3.43817075,147.93,147.85,3.3811]
[1726851822472,3.43817075,147.93,147.84,1.3231]
[1726851822473,16.23,147.92,147.84,1.3231]
[1726851822655,19.60155133,147.92,147.84,1.3231]
[1726851822857,39.89155133,147.92,147.82,1.3649]
[1726851823055,16.23,147.9,147.79,16.23]
[1726851823355,3.3815,147.85,147.81,3.3821]
[1726851824064,3.3815,147.85,147.8,3.38135825]
[1726851824065,3.3815,147.85,147.82,3.3819]
[1726851824256,3.3811,147.86,147.82,3.3819]
[1726851824455,16.23,147.9,147.8,3.38135825]
[1726851824856,3.3812,147.86,147.82,3.3818]
[1726851827865,16.23,147.9,147.83,3.3817]
[1726851828373,16.23,147.9,147.81,16.23]
[1726851828374,3.3814,147.85,147.81,16.23]
[1726851828768,3.3811,147.86,147.82,3.3818]
[1726851829360,3.3811,147.86,147.81,16.23]
[1726851829671,16.23,147.9,147.81,16.23]
[1726851830060,16.23,147.9,147.83,3.3816]
[1726851830459,1.2812,147.91,147.76,3.9409]
[1726851830460,16.23,147.86,147.76,20.1709]
[1726851830671,1.301,147.85,147.76,20.1709]
[1726851830870,3.3823,147.81,147.77,3.3829]
[1726851831067,1.301,147.85,147.76,20.1709]
[1726851831258,1.301,147.85,147.76,3.9409]
[1726851831462,1.301,147.85,147.78,3.3827]
[1726851832063,3.3822,147.82,147.78,3.3827]
[1726851833372,3.3822,147.81,147.78,3.3827]
[1726851833576,1.301,147.85,147.77,3.383]
[1726851833869,1.301,147.85,147.76,18.8256]
[1726851834062,3.3821,147.82,147.78,3.3827]
[1726851835063,3.3816,147.84,147.76,18.8256]
[1726851835367,1.301,147.85,147.76,18.8256]
[1726851836472,1.3473,147.87,147.79,16.23]
[1726851837476,3.3815,147.85,147.81,3.382]
[1726851837669,1.3473,147.87,147.81,3.382]
[1726851839772,1.3626,147.9,147.82,16.23]
[1726851840178,3.3806,147.88,147.84,3.3813]
[1726851840480,1.3626,147.9,147.82,19.0024]
[1726851840777,17.5926,147.9,147.82,2.7724]
[1726851840967,16.23,147.87,147.78,16.23]
[1726851841469,3.3816,147.84,147.8,3.3823]
[1726851842773,16.23,147.87,147.81,3.3821]
[1726851842774,3.3814,147.85,147.81,3.3821]
[1726851842974,16.23,147.87,147.78,16.23]
[1726851843478,16.23,147.87,147.8,3.3823]
[1726851843479,3.3816,147.84,147.8,3.3823]
[1726851845873,16.23,147.87,147.8,3.3823]
[1726851846076,16.23,147.85,147.74,2.6872]
[1726851846267,16.23,147.83,147.74,2.6872]
[1726851846468,1.3811,147.84,147.75,16.23]
[1726851846975,3.382,147.82,147.75,16.23]
[1726851847173,1.3811,147.84,147.75,16.23]
[1726851847578,3.3826,147.8,147.76,3.3832]
[1726851848074,3.3826,147.8,147.77,3.383]
[1726851848271,3.3823,147.81,147.75,16.23]
[1726851848777,3.3822,147.82,147.75,16.23]
[1726851849166,16.23,147.86,147.75,16.23]
[1726851849478,3.3819,147.83,147.77,16.23]
[1726851849674,16.23,147.88,147.8,3.3823]
[1726851850070,16.23,147.88,147.79,3.3826]
[1726851850469,3.3819,147.83,147.79,3.3826]
[1726851850867,16.23,147.86,147.75,16.23]
[1726851851176,3.3824,147.81,147.75,16.23]
[1726851851378,16.23,147.86,147.78,3.3827]
[1726851851876,3.382,147.82,147.78,3.3827]
[1726851852078,16.23,147.86,147.77,16.23]
[1726851852476,16.23,147.86,147.79,3.3825]
[1726851852873,3.3817,147.83,147.79,3.3825]
[1726851853073,16.23,147.84,147.74,2.6872]
[1726851853401,16.23,147.84,147.74,18.9172]
[1726851853873,3.3823,147.81,147.74,18.9172]
[1726851854077,16.23,147.84,147.76,3.3831]
[1726851854383,16.23,147.82,147.74,2.6872]
[1726851854586,3.383,147.78,147.74,6.0709]
[1726851854883,16.23,147.8,147.74,1.3314]
[1726851855178,16.23,147.8,147.71,135.3]
[1726851855366,2.6424,147.83,147.71,140.12627959]
[1726851855565,16.23,147.81,147.71,140.12627959]
[1726851855872,3.383,147.78,147.71,140.12627959]
[1726851856283,3.383,147.78,147.73,3.384]
[1726851856476,3.3831,147.77,147.73,3.384]
[1726851856677,3.3831,147.77,147.71,140.12627959]
[1726851856983,16.23,147.81,147.72,16.23]
[1726851857190,3.3829,147.78,147.72,16.23]
[1726851857477,3.3829,147.78,147.75,3.3835]
[1726851857875,18.8724,147.83,147.72,16.23]
[1726851858385,16.23,147.81,147.72,3.3841]
[1726851858585,16.23,147.79,147.72,3.3841]
[1726851859087,3.3831,147.77,147.72,3.3841]
[1726851859382,3.3831,147.77,147.73,3.3839]
[1726851860083,16.23,147.81,147.75,3.3834]
[1726851860583,3.3828,147.79,147.75,3.3834]
[1726851861173,3.3825,147.8,147.76,3.3831]
[1726851861392,18.8724,147.83,147.74,16.23]
[1726851861888,3.3828,147.79,147.75,3.3833]
[1726851862988,3.3825,147.8,147.72,16.23]
[1726851863491,1.3609,147.83,147.78,3.3827]
[1726851863683,3.3821,147.82,147.78,3.3827]
[1726851863884,1.3609,147.83,147.79,3.3824]
[1726851864188,16.23,147.86,147.79,3.3824]
[1726851864388,3.3819,147.83,147.79,3.3824]
[1726851864588,16.23,147.86,147.79,3.3824]
[1726851865278,16.23,147.86,147.76,16.23]
[1726851865684,16.23,147.86,147.72,17.5651]
[1726851865685,16.23,147.83,147.74,16.23]
[1726851865886,16.23,147.83,147.72,1.3351]
[1726851865887,16.23,147.83,147.72,17.5651]
[1726851866281,3.3826,147.8,147.76,3.3832]
[1726851866478,16.23,147.81,147.72,16.23]
[1726851866684,16.23,147.81,147.71,4.82627959]
[1726851867093,3.383,147.78,147.74,3.3836]
[1726851867783,3.3827,147.79,147.75,3.3834]
[1726851868097,17.6113,147.81,147.75,3.3834]
[1726851868298,3.3829,147.78,147.74,3.3837]
[1726851868993,3.3831,147.77,147.74,3.3837]
[1726851869794,16.23,147.77,147.71,1.3813]
[1726851870296,3.3837,147.75,147.71,4.7656]
[1726851872398,3.3838,147.74,147.71,1.3813]
[1726851873596,16.23,147.77,147.71,1.3813]
[1726851873597,3.384,147.73,147.71,1.3813]
[1726851874100,3.3839,147.74,147.71,1.3813]
[1726851877700,16.23,147.77,147.71,1.3813]
[1726851877897,16.23,147.75,147.67,1.3505]
[1726851878196,3.3851,147.69,147.65,3.3857]
[1726851878396,3.3851,147.69,147.62,18.9584]
[1726851878397,16.23,147.71,147.62,4.0789]
[1726851878807,16.23,147.71,147.62,2.6721]
[1726851879306,16.23,147.69,147.62,2.6721]
[1726851880190,3.3854,147.67,147.62,6.0585]
[1726851880394,16.23,147.67,147.57,19.64426794]
[1726851880594,3.3867,147.62,147.57,3.3875]
[1726851881200,3.3867,147.62,147.56,2.6515]
[1726851881201,3.3871,147.6,147.56,2.6515]
[1726851881499,16.23,147.64,147.56,2.6515]
[1726851881703,3.3866,147.62,147.57,3.3876]
[1726851885008,16.23,147.64,147.58,3.3873]
[1726851885511,16.23,147.61,147.56,1.3124]
[1726851885900,3.3871,147.6,147.56,1.3124]
[1726851887205,3.3872,147.59,147.55,3.388]
[1726851889202,3.3872,147.59,147.49,1.4115]
[1726851889203,16.23,147.59,147.49,1.4115]
[1726851889392,16.23,147.59,147.5,1.3666]
[1726851889905,16.23,147.59,147.55,3.388]
[1726851891008,3.3874,147.58,147.55,3.388]
[1726851891503,3.3874,147.58,147.54,3.3882]
[1726851891897,3.3877,147.57,147.54,3.3882]
[1726851893508,1.3761,147.6,147.5,1.3666]
[1726851893702,1.3761,147.6,147.51,16.23]
[1726851893911,16.23,147.63,147.54,16.23]
[1726851894812,3.3871,147.6,147.57,3.3876]
[1726851897506,1.2803,147.66,147.57,3.40335822]
[1726851897708,16.23,147.65,147.55,1.4043]
[1726851898214,16.23,147.62,147.55,1.4043]
[1726851898414,16.23,147.6,147.55,1.4043]
[1726851898611,3.3875,147.58,147.55,4.7922]
[1726851898811,3.3875,147.58,147.55,3.3879]
[1726851899711,3.3875,147.58,147.52,16.23]
[1726851899712,3.3879,147.57,147.54,3.3883]
[1726851900312,3.3879,147.57,147.51,1.2978]
[1726851900815,3.3879,147.57,147.55,3.3881]
[1726851901503,3.3875,147.58,147.55,3.3881]
[1726851902210,3.3877,147.57,147.55,3.3881]
[1726851902807,3.388,147.56,147.54,3.3882]
[1726851903806,3.388,147.56,147.53,3.3885]
[1726851904207,16.23,147.59,147.51,1.2978]
[1726851904410,16.23,147.59,147.52,3.3887]
[1726851904606,3.3881,147.56,147.51,1.2978]
[1726851904806,16.23,147.59,147.51,1.2978]
[1726851905315,16.23,147.59,147.53,3.3885]
[1726851905514,16.23,147.59,147.51,1.2978]
[1726851905708,16.23,147.57,147.52,3.3888]
[1726851906428,3.3885,147.54,147.52,3.3888]
[1726851907315,3.3889,147.52,147.48,4.7446596]
[1726851907707,16.23,147.54,147.5,3.3892]
[1726851908212,3.3898,147.48,147.45,3.3903]
[1726851908417,3.3898,147.48,147.39,83.14967417]
[1726851908418,16.23,147.51,147.41,2.8238]
[1726851908822,16.23,147.51,147.46,3.3902]
[1726851909117,16.23,147.51,147.41,19.0538]
[1726851909313,3.3897,147.49,147.41,19.0538]
[1726851909910,3.3897,147.49,147.46,3.3901]
[1726851910107,1.287,147.52,147.43,16.23]
[1726851910317,16.23,147.55,147.46,16.23]
[1726851910514,6.7729,147.63,147.47,2.8238]
[1726851910515,3.3885,147.54,147.47,2.8238]
[1726851910712,3.3885,147.54,147.48,3.33108463]
[1726851911014,16.23,147.57,147.47,2.8238]
[1726851911210,3.3883,147.55,147.48,16.23]
[1726851911416,3.3883,147.55,147.49,3.39786904]
[1726851911813,16.23,147.59,147.49,3.39786904]
[1726851912418,16.23,147.59,147.52,3.3887]
[1726851912623,16.23,147.57,147.52,3.3887]
[1726851912815,16.23,147.57,147.49,3.39786904]
[1726851913004,16.23,147.57,147.48,16.23]
[1726851913005,16.23,147.57,147.47,2.8238]
[1726851913410,16.23,147.55,147.47,2.8238]
[1726851913617,3.3888,147.53,147.47,2.8238]
[1726851914706,3.3884,147.54,147.5,3.3891]
[1726851915119,1.3726,147.56,147.48,19.68216647]
[1726851915423,3.3877,147.57,147.5,16.23]
[1726851915620,3.3877,147.57,147.51,3.33300549]
[1726851915821,3.3877,147.57,147.5,16.23]
[1726851915822,16.23,147.61,147.5,16.23]
[1726851916118,17.6482,147.62,147.53,16.23]
[1726851916320,3.3876,147.58,147.5,16.23]
[1726851916516,16.23,147.6,147.49,16.23]
[1726851917224,16.23,147.58,147.48,4.75014312]
[1726851917720,16.23,147.56,147.48,4.75014312]
[1726851918125,16.23,147.56,147.48,3.36824312]
[1726851918425,16.23,147.56,147.47,2.8238]
[1726851918630,16.23,147.54,147.47,2.8238]
[1726851918813,3.389,147.52,147.49,3.3894]
[1726851919018,16.23,147.54,147.47,2.8238]
[1726851919415,3.3885,147.54,147.47,2.8238]
[1726851919719,3.3885,147.54,147.47,19.0538]
[1726851919918,16.23,147.58,147.49,16.23]
[1726851920119,16.23,147.58,147.5,3.41162856]
[1726851920326,3.3879,147.56,147.53,3.3885]
[1726851922020,3.3883,147.55,147.52,3.3888]
[1726851922223,16.23,147.58,147.5,3.46551243]
[1726851922435,16.23,147.56,147.47,19.0538]
[1726851922615,16.23,147.56,147.53,3.3885]
[1726851922822,16.23,147.56,147.5,3.44911685]
[1726851923117,3.3881,147.55,147.52,3.3886]
[1726851923920,16.23,147.56,147.5,3.38134759]
[1726851923921,3.3884,147.54,147.51,3.389]
[1726851924924,3.3884,147.54,147.52,3.3888]
[1726851925439,1.4182,147.62,147.5,3.37355412]
[1726851925440,16.23,147.58,147.5,3.37355412]
[1726851925735,17.6482,147.62,147.51,16.23]
[1726851925916,17.6482,147.62,147.58,3.3873]
[1726851925917,3.3869,147.61,147.58,3.3873]
[1726851926118,17.6482,147.62,147.58,3.3873]
[1726851926318,3.3871,147.6,147.53,16.23]
[1726851926521,3.3871,147.6,147.57,3.3875]
[1726851926819,17.6482,147.62,147.51,16.23]
[1726851927015,3.3875,147.58,147.51,16.23]
[1726851927817,16.23,147.58,147.5,3.32758328]
[1726851928022,16.23,147.58,147.49,16.23]
[1726851928423,16.23,147.58,147.55,3.388]
[1726851929037,3.3877,147.57,147.55,3.388]
[1726851929927,3.3877,147.57,147.54,3.3883]
[1726851930227,16.23,147.58,147.49,3.45432899]
[1726851930440,16.23,147.58,147.52,3.3887]
[1726851930741,16.23,147.56,147.52,3.3887]
[1726851931124,3.3885,147.54,147.52,3.3887]
[1726851931530,16.23,147.53,147.47,2.8238]
[1726851931730,16.23,147.53,147.42,6.7821]
[1726851931930,16.23,147.53,147.47,3.3899]
[1726851932132,3.3894,147.5,147.47,3.3899]
[1726851932334,16.23,147.53,147.47,3.3899]
[1726851932949,16.23,147.5,147.46,3.3901]
[1726851933439,16.23,147.48,147.43,1.3585]
[1726851933644,16.23,147.48,147.41,135.54]
[1726851933838,3.3901,147.47,147.41,135.54]
[1726851934032,16.23,147.5,147.41,135.54]
[1726851934931,16.23,147.5,147.42,16.23]
[1726851935126,2.6208,147.55,147.44,16.23]
[1726851935332,2.6208,147.55,147.45,1.2981]
[1726851935629,16.23,147.54,147.45,1.2981]
[1726851937135,3.3894,147.5,147.47,3.3899]
[1726851937338,16.23,147.54,147.45,1.2981]
[1726851937532,16.23,147.52,147.45,1.2981]
[1726851937737,16.23,147.52,147.41,151.77]
[1726851937948,16.23,147.52,147.41,153.1415]
[1726851938144,3.3899,147.48,147.44,3.3905]
[1726851938343,3.3899,147.48,147.41,153.1415]
[1726851939044,3.3899,147.48,147.45,3.3903]
[1726851939246,3.39,147.47,147.45,3.3903]
[1726851939438,16.23,147.5,147.41,136.9115]
[1726851939946,16.23,147.5,147.43,3.3908]
[1726851939947,3.3902,147.46,147.43,3.3908]
[1726851940448,3.3902,147.46,147.44,3.3906]
[1726851941037,1.3984,147.49,147.41,17.6015]
[1726851941347,16.23,147.52,147.43,16.23]
[1726851941740,3.3893,147.5,147.43,16.23]
[1726851942040,16.23,147.53,147.43,16.23]
[1726851942233,3.3892,147.51,147.48,3.3896]
[1726851942951,1.4172,147.54,147.44,16.23]
[1726851943153,1.4172,147.54,147.45,1.4147]
[1726851943346,4.8057,147.54,147.51,3.3889]
[1726851943647,3.3885,147.54,147.48,3.39922507]
[1726851943848,3.3882,147.55,147.52,3.3887]
[1726851944044,16.23,147.57,147.52,3.3887]
[1726851944235,1.3587,147.59,147.48,4.74812507]
[1726851944236,16.23,147.55,147.48,1.3489]
[1726851944436,3.3887,147.53,147.5,3.3892]
[1726851944635,3.3887,147.53,147.48,1.3489]
[1726851944852,3.3885,147.54,147.48,1.3489]
[1726851945054,1.3587,147.59,147.48,1.3489]
[1726851945055,16.23,147.57,147.48,1.3489]
[1726851945237,16.23,147.57,147.49,19.53995302]
[1726851945554,17.5887,147.59,147.49,16.23]
[1726851945947,17.5887,147.59,147.49,19.54740939]
[1726851946144,3.3877,147.57,147.54,3.3883]
[1726851946339,17.5887,147.59,147.5,16.23]
[1726851946549,16.23,147.59,147.5,16.23]
[1726851946740,3.3877,147.58,147.51,1.2881]
[1726851946936,16.23,147.59,147.51,1.2881]
[1726851947343,3.3878,147.57,147.54,3.3882]
[1726851947537,3.3878,147.57,147.51,1.2881]